[Event "Titled Tuesday Blitz November 14 Early 2023"]
[White "Ahmad, Khagan"]
[Black "Gharibyan, Mamikon"]
[WhiteFideId "13431552"]
[BlackFideId "13308300"]
[WhiteElo "2597"]
[BlackElo "2811"]
[Result "1-0"]
[Round "4"]
[TimeControl "180+1"]
[Date "2023.11.14"]
[WhiteClock "0:00:40"]
[BlackClock "0:00:02"]
[Board "56"]

1. Nf3 {[%clk 0:03:00]}  d5 {[%clk 0:02:56]} 2. d4 {[%clk 0:02:56]}  Nf6 {[%clk 0:02:55]} 3. c4 {[%clk 0:02:50]}  e6 {[%clk 0:02:55]} 4. g3 {[%clk 0:02:46]}  Be7 {[%clk 0:02:55]} 5. Bg2 {[%clk 0:02:46]}  O-O {[%clk 0:02:55]} 6. O-O {[%clk 0:02:46]}  a5 {[%clk 0:02:56]} 7. Qc2 {[%clk 0:02:40]}  c6 {[%clk 0:02:52]} 8. Nbd2 {[%clk 0:02:34]}  a4 {[%clk 0:02:45]} 9. e4 {[%clk 0:02:34]}  b6 {[%clk 0:02:39]} 10. Re1 {[%clk 0:02:18]}  Bb7 {[%clk 0:02:32]} 11. e5 {[%clk 0:02:04]}  Ne8 {[%clk 0:02:24]} 12. h4 {[%clk 0:02:02]}  c5 {[%clk 0:02:23]} 13. cxd5 {[%clk 0:02:01]}  Bxd5 {[%clk 0:02:12]} 14. dxc5 {[%clk 0:01:53]}  Nc6 {[%clk 0:02:08]} 15. Ne4 {[%clk 0:01:46]}  bxc5 {[%clk 0:01:49]} 16. Nfg5 {[%clk 0:01:44]}  Nd4 {[%clk 0:01:31]} 17. Qd3 {[%clk 0:01:33]}  g6 {[%clk 0:01:12]} 18. Be3 {[%clk 0:01:23]}  h6 {[%clk 0:00:39]} 19. Nh3 {[%clk 0:01:07]}  Nf5 {[%clk 0:00:27]} 20. Bxc5 {[%clk 0:00:59]}  Bxe4 {[%clk 0:00:25]} 21. Qxe4 {[%clk 0:00:58]}  Bxc5 {[%clk 0:00:20]} 22. Qxa8 {[%clk 0:00:58]}  Bxf2+ {[%clk 0:00:16]} 23. Nxf2 {[%clk 0:00:57]}  Qd2 {[%clk 0:00:08]} 24. Qf3 {[%clk 0:00:54]}  Qxb2 {[%clk 0:00:05]} 25. Rab1 {[%clk 0:00:46]}  Qxa2 {[%clk 0:00:05]} 26. Rb8 {[%clk 0:00:45]}  h5 {[%clk 0:00:04]} 27. Ne4 {[%clk 0:00:44]}  Qd5 {[%clk 0:00:02]} 28. Rxe8 {[%clk 0:00:41]}  Qd4+ {[%clk 0:00:02]} 29. Qf2 {[%clk 0:00:41]}  Rxe8 {[%clk 0:00:01]} 30. Nf6+ {[%clk 0:00:41]}  Kf8 {[%clk 0:00:01]} 31. Qxd4 {[%clk 0:00:40]}  Nxd4 {[%clk 0:00:01]} 32. Nxe8 {[%clk 0:00:41]}  a3 {[%clk 0:00:02]} 33. Ra1 {[%clk 0:00:40]}  Nc2 {[%clk 0:00:03]} 34. Ra2 {[%clk 0:00:41]}  Nb4 {[%clk 0:00:03]} 35. Rxa3 {[%clk 0:00:41]}  Kxe8 {[%clk 0:00:04]} 36. Be4 {[%clk 0:00:40]}  Ke7 {[%clk 0:00:02]} 37. Ra4 {[%clk 0:00:40]} 1-0


[Site "https://www.chess.com"]

[Event "Titled Tuesday Blitz November 14 Early 2023"]
[White "Lobanov, Sergei"]
[Black "Sousa, Andre Ventura"]
[WhiteFideId "24183750"]
[BlackFideId "1917617"]
[WhiteElo "2809"]
[BlackElo "2585"]
[Result "1/2-1/2"]
[Round "4"]
[TimeControl "180+1"]
[Date "2023.11.14"]
[WhiteClock "0:00:04"]
[BlackClock "0:00:25"]
[Board "59"]

1. d4 {[%clk 0:03:00]}  Nf6 {[%clk 0:03:00]} 2. c4 {[%clk 0:03:00]}  e6 {[%clk 0:03:00]} 3. Nc3 {[%clk 0:03:00]}  d5 {[%clk 0:03:00]} 4. cxd5 {[%clk 0:03:01]}  exd5 {[%clk 0:03:01]} 5. Bg5 {[%clk 0:03:01]}  c6 {[%clk 0:03:02]} 6. e3 {[%clk 0:03:01]}  h6 {[%clk 0:03:02]} 7. Bh4 {[%clk 0:03:01]}  Be7 {[%clk 0:03:03]} 8. Bd3 {[%clk 0:03:01]}  O-O {[%clk 0:03:03]} 9. Nge2 {[%clk 0:03:01]}  Re8 {[%clk 0:03:04]} 10. f3 {[%clk 0:03:00]}  Nbd7 {[%clk 0:03:03]} 11. Bf2 {[%clk 0:02:58]}  b5 {[%clk 0:02:56]} 12. O-O {[%clk 0:02:58]}  a5 {[%clk 0:02:54]} 13. h3 {[%clk 0:02:49]}  Ba6 {[%clk 0:02:52]} 14. e4 {[%clk 0:02:33]}  dxe4 {[%clk 0:02:52]} 15. fxe4 {[%clk 0:02:33]}  b4 {[%clk 0:02:52]} 16. Na4 {[%clk 0:02:32]}  Bxd3 {[%clk 0:02:49]} 17. Qxd3 {[%clk 0:02:33]}  Nc5 {[%clk 0:02:29]} 18. Nxc5 {[%clk 0:02:20]}  Bxc5 {[%clk 0:02:30]} 19. Ng3 {[%clk 0:02:19]}  Bd6 {[%clk 0:02:17]} 20. Rae1 {[%clk 0:02:02]}  Bxg3 {[%clk 0:02:02]} 21. Bxg3 {[%clk 0:02:01]}  Nh7 {[%clk 0:01:54]} 22. d5 {[%clk 0:01:13]}  cxd5 {[%clk 0:01:54]} 23. exd5 {[%clk 0:01:13]}  Qd7 {[%clk 0:01:51]} 24. d6 {[%clk 0:01:04]}  Nf6 {[%clk 0:01:49]} 25. Bh4 {[%clk 0:00:52]}  Rxe1 {[%clk 0:01:49]} 26. Rxe1 {[%clk 0:00:52]}  Re8 {[%clk 0:01:49]} 27. Rxe8+ {[%clk 0:00:49]}  Nxe8 {[%clk 0:01:48]} 28. Be7 {[%clk 0:00:40]}  Nf6 {[%clk 0:01:12]} 29. Bxf6 {[%clk 0:00:36]}  gxf6 {[%clk 0:01:13]} 30. b3 {[%clk 0:00:35]}  Kf8 {[%clk 0:01:11]} 31. Qd5 {[%clk 0:00:35]}  Qe6 {[%clk 0:01:07]} 32. Qa8+ {[%clk 0:00:33]}  Kg7 {[%clk 0:01:07]} 33. Qa6 {[%clk 0:00:13]}  Qe3+ {[%clk 0:00:56]} 34. Kh2 {[%clk 0:00:12]}  Qe5+ {[%clk 0:00:48]} 35. Kg1 {[%clk 0:00:12]}  Qe3+ {[%clk 0:00:48]} 36. Kf1 {[%clk 0:00:10]}  Qc1+ {[%clk 0:00:38]} 37. Ke2 {[%clk 0:00:10]}  Qc2+ {[%clk 0:00:36]} 38. Kf3 {[%clk 0:00:10]}  Qc3+ {[%clk 0:00:31]} 39. Ke4 {[%clk 0:00:09]}  Qe5+ {[%clk 0:00:28]} 40. Kd3 {[%clk 0:00:09]}  Qc3+ {[%clk 0:00:27]} 41. Ke2 {[%clk 0:00:08]}  Qc2+ {[%clk 0:00:26]} 42. Ke1 {[%clk 0:00:06]}  Qc1+ {[%clk 0:00:27]} 43. Kf2 {[%clk 0:00:06]}  Qb2+ {[%clk 0:00:26]} 44. Kf3 {[%clk 0:00:03]}  Qc3+ {[%clk 0:00:25]} 45. Kf2 {[%clk 0:00:03]}  Qd2+ {[%clk 0:00:23]} 46. Kf1 {[%clk 0:00:03]}  Qd1+ {[%clk 0:00:23]} 47. Kf2 {[%clk 0:00:03]}  Qd2+ {[%clk 0:00:23]} 48. Kf1 {[%clk 0:00:04]}  Qd1+ {[%clk 0:00:24]} 49. Kf2 {[%clk 0:00:04]}  Qd2+ {[%clk 0:00:25]} 1/2-1/2


[Site "https://www.chess.com"]

[Event "Titled Tuesday Blitz November 14 Early 2023"]
[White "Narayanan, Srinath"]
[Black "FREDERICKtheMATE"]
[WhiteFideId "5018420"]
[WhiteElo "2790"]
[BlackElo "2566"]
[Result "1-0"]
[Round "4"]
[TimeControl "180+1"]
[Date "2023.11.14"]
[WhiteClock "0:00:25"]
[BlackClock "0:01:12"]
[Board "64"]

1. e4 {[%clk 0:03:00]}  c5 {[%clk 0:02:59]} 2. Nf3 {[%clk 0:03:00]}  Nc6 {[%clk 0:03:00]} 3. d4 {[%clk 0:02:59]}  cxd4 {[%clk 0:03:01]} 4. Nxd4 {[%clk 0:03:00]}  Nf6 {[%clk 0:03:01]} 5. Nc3 {[%clk 0:03:00]}  e5 {[%clk 0:03:02]} 6. Ndb5 {[%clk 0:03:00]}  d6 {[%clk 0:03:02]} 7. Bg5 {[%clk 0:03:00]}  a6 {[%clk 0:03:02]} 8. Na3 {[%clk 0:03:01]}  b5 {[%clk 0:03:01]} 9. Nd5 {[%clk 0:03:01]}  Be7 {[%clk 0:03:01]} 10. Bxf6 {[%clk 0:03:02]}  Bxf6 {[%clk 0:03:02]} 11. c4 {[%clk 0:03:02]}  b4 {[%clk 0:03:02]} 12. Nc2 {[%clk 0:03:02]}  O-O {[%clk 0:03:03]} 13. Be2 {[%clk 0:03:02]}  a5 {[%clk 0:03:02]} 14. O-O {[%clk 0:03:02]}  Bg5 {[%clk 0:02:59]} 15. Qd3 {[%clk 0:03:02]}  Kh8 {[%clk 0:02:59]} 16. Rfd1 {[%clk 0:03:03]}  f5 {[%clk 0:02:59]} 17. Bf3 {[%clk 0:02:59]}  g6 {[%clk 0:02:59]} 18. a3 {[%clk 0:02:58]}  Rb8 {[%clk 0:02:55]} 19. axb4 {[%clk 0:02:58]}  axb4 {[%clk 0:02:56]} 20. b3 {[%clk 0:02:53]}  f4 {[%clk 0:02:54]} 21. Qe2 {[%clk 0:02:51]}  h5 {[%clk 0:02:43]} 22. h3 {[%clk 0:02:45]}  Bh6 {[%clk 0:02:41]} 23. Qe1 {[%clk 0:02:42]}  Qh4 {[%clk 0:02:38]} 24. Ndxb4 {[%clk 0:02:32]}  Nxb4 {[%clk 0:02:35]} 25. Nxb4 {[%clk 0:02:33]}  Rb6 {[%clk 0:02:33]} 26. Ra7 {[%clk 0:02:26]}  g5 {[%clk 0:02:30]} 27. c5 {[%clk 0:01:50]}  dxc5 {[%clk 0:02:27]} 28. Qc3 {[%clk 0:01:51]}  cxb4 {[%clk 0:02:17]} 29. Qc7 {[%clk 0:01:25]}  Rb7 {[%clk 0:02:10]} 30. Rxb7 {[%clk 0:01:12]}  Bxb7 {[%clk 0:02:11]} 31. Rd6 {[%clk 0:01:02]}  Bg7 {[%clk 0:02:05]} 32. Rg6 {[%clk 0:01:01]}  Rg8 {[%clk 0:01:57]} 33. Qxb7 {[%clk 0:00:59]}  Kh7 {[%clk 0:01:56]} 34. Qf7 {[%clk 0:00:56]}  g4 {[%clk 0:01:41]} 35. hxg4 {[%clk 0:00:55]}  hxg4 {[%clk 0:01:42]} 36. Bxg4 {[%clk 0:00:43]}  Qd8 {[%clk 0:01:42]} 37. Qf5 {[%clk 0:00:35]}  Qf8 {[%clk 0:01:14]} 38. Rf6+ {[%clk 0:00:29]}  Kh8 {[%clk 0:01:13]} 39. Qh5+ {[%clk 0:00:29]}  Bh6 {[%clk 0:01:13]} 40. Rxf8 {[%clk 0:00:23]}  Rxf8 {[%clk 0:01:12]} 41. Qxh6+ {[%clk 0:00:23]}  Kg8 {[%clk 0:01:11]} 42. Be6+ {[%clk 0:00:24]}  Rf7 {[%clk 0:01:11]} 43. Qg6+ {[%clk 0:00:25]}  Kh8 {[%clk 0:01:11]} 44. Qxf7 {[%clk 0:00:24]}  f3 {[%clk 0:01:12]} 45. Qg8# {[%clk 0:00:25]} 1-0


[Site "https://www.chess.com"]

[Event "Titled Tuesday Blitz November 14 Early 2023"]
[White "Alen_Yeremyann"]
[Black "Ozates, Tuna"]
[BlackFideId "6354521"]
[WhiteElo "2788"]
[BlackElo "2565"]
[Result "1-0"]
[Round "4"]
[TimeControl "180+1"]
[Date "2023.11.14"]
[WhiteClock "0:00:44"]
[BlackClock "0:00:01"]
[Board "66"]

1. e4 {[%clk 0:02:54]}  c5 {[%clk 0:03:00]} 2. Nc3 {[%clk 0:02:54]}  a6 {[%clk 0:02:59]} 3. a4 {[%clk 0:02:54]}  e6 {[%clk 0:02:58]} 4. g3 {[%clk 0:02:54]}  Nc6 {[%clk 0:02:58]} 5. Bg2 {[%clk 0:02:55]}  g6 {[%clk 0:02:57]} 6. Nge2 {[%clk 0:02:56]}  Bg7 {[%clk 0:02:58]} 7. O-O {[%clk 0:02:56]}  Nge7 {[%clk 0:02:58]} 8. d3 {[%clk 0:02:57]}  O-O {[%clk 0:02:59]} 9. Be3 {[%clk 0:02:58]}  d6 {[%clk 0:02:59]} 10. d4 {[%clk 0:02:59]}  cxd4 {[%clk 0:02:48]} 11. Nxd4 {[%clk 0:03:00]}  Rb8 {[%clk 0:02:45]} 12. h3 {[%clk 0:02:57]}  Nxd4 {[%clk 0:02:44]} 13. Bxd4 {[%clk 0:02:58]}  b5 {[%clk 0:02:45]} 14. axb5 {[%clk 0:02:57]}  axb5 {[%clk 0:02:45]} 15. Bxg7 {[%clk 0:02:58]}  Kxg7 {[%clk 0:02:45]} 16. Qd4+ {[%clk 0:02:59]}  e5 {[%clk 0:02:43]} 17. Qd2 {[%clk 0:02:59]}  Nc6 {[%clk 0:02:42]} 18. Rfd1 {[%clk 0:02:59]}  Nd4 {[%clk 0:02:41]} 19. Ne2 {[%clk 0:02:58]}  Nxe2+ {[%clk 0:02:41]} 20. Qxe2 {[%clk 0:02:59]}  Be6 {[%clk 0:02:40]} 21. Qd2 {[%clk 0:02:51]}  Rb6 {[%clk 0:02:26]} 22. Ra7 {[%clk 0:02:49]}  Qf6 {[%clk 0:02:22]} 23. Qe3 {[%clk 0:02:47]}  Rc6 {[%clk 0:02:21]} 24. c3 {[%clk 0:02:47]}  Rb8 {[%clk 0:02:16]} 25. f4 {[%clk 0:02:47]}  b4 {[%clk 0:02:14]} 26. f5 {[%clk 0:02:44]}  Bb3 {[%clk 0:02:09]} 27. Rf1 {[%clk 0:02:44]}  Bc4 {[%clk 0:02:07]} 28. fxg6 {[%clk 0:02:33]}  Qxg6 {[%clk 0:01:54]} 29. Rf5 {[%clk 0:02:26]}  bxc3 {[%clk 0:01:52]} 30. bxc3 {[%clk 0:02:17]}  h6 {[%clk 0:01:49]} 31. Qf2 {[%clk 0:02:10]}  Rb1+ {[%clk 0:01:40]} 32. Kh2 {[%clk 0:02:10]}  Be6 {[%clk 0:01:39]} 33. h4 {[%clk 0:02:06]}  Rxc3 {[%clk 0:00:57]} 34. h5 {[%clk 0:01:59]}  Bxf5 {[%clk 0:00:55]} 35. hxg6 {[%clk 0:01:47]}  Bxg6 {[%clk 0:00:56]} 36. Qd2 {[%clk 0:01:47]}  Rc6 {[%clk 0:00:42]} 37. Rd7 {[%clk 0:01:39]}  Rbc1 {[%clk 0:00:42]} 38. Rxd6 {[%clk 0:01:28]}  R6c5 {[%clk 0:00:15]} 39. Rd8 {[%clk 0:00:59]}  R1c2 {[%clk 0:00:12]} 40. Qd6 {[%clk 0:00:57]}  Bxe4 {[%clk 0:00:10]} 41. Qf8+ {[%clk 0:00:57]}  Kg6 {[%clk 0:00:06]} 42. Rd6+ {[%clk 0:00:51]}  Kg5 {[%clk 0:00:06]} 43. Qxh6+ {[%clk 0:00:46]}  Kf5 {[%clk 0:00:01]} 44. Rf6+ {[%clk 0:00:44]} 1-0


[Site "https://www.chess.com"]

[Event "Titled Tuesday Blitz November 14 Early 2023"]
[White "Brunner, Nicolas"]
[Black "Llorente Zaro, Alfonso"]
[WhiteFideId "620246"]
[BlackFideId "2254131"]
[WhiteElo "2557"]
[BlackElo "2778"]
[Result "1-0"]
[Round "4"]
[TimeControl "180+1"]
[Date "2023.11.14"]
[WhiteClock "0:00:07"]
[BlackClock "0:00:00"]
[Board "67"]

1. Nf3 {[%clk 0:03:00]}  d5 {[%clk 0:02:56]} 2. g3 {[%clk 0:03:00]}  Nf6 {[%clk 0:02:56]} 3. Bg2 {[%clk 0:03:00]}  e6 {[%clk 0:02:56]} 4. O-O {[%clk 0:02:59]}  Be7 {[%clk 0:02:54]} 5. d4 {[%clk 0:02:58]}  O-O {[%clk 0:02:54]} 6. c4 {[%clk 0:02:57]}  a6 {[%clk 0:02:50]} 7. Qc2 {[%clk 0:02:47]}  dxc4 {[%clk 0:02:48]} 8. Qxc4 {[%clk 0:02:47]}  b5 {[%clk 0:02:49]} 9. Qc2 {[%clk 0:02:47]}  Bb7 {[%clk 0:02:49]} 10. Bg5 {[%clk 0:02:47]}  Nbd7 {[%clk 0:02:47]} 11. Bxf6 {[%clk 0:02:40]}  Nxf6 {[%clk 0:02:41]} 12. Nbd2 {[%clk 0:02:40]}  Qd6 {[%clk 0:02:04]} 13. Nb3 {[%clk 0:02:38]}  Be4 {[%clk 0:02:04]} 14. Qd2 {[%clk 0:02:29]}  Qb6 {[%clk 0:02:04]} 15. Rac1 {[%clk 0:02:27]}  Rfd8 {[%clk 0:02:04]} 16. Qa5 {[%clk 0:02:22]}  Rac8 {[%clk 0:01:55]} 17. Rfd1 {[%clk 0:01:05]}  Nd5 {[%clk 0:00:41]} 18. Ne5 {[%clk 0:00:59]}  Bxg2 {[%clk 0:00:41]} 19. Kxg2 {[%clk 0:00:59]}  Nb4 {[%clk 0:00:33]} 20. Qxb6 {[%clk 0:00:49]}  cxb6 {[%clk 0:00:34]} 21. a3 {[%clk 0:00:50]}  f6 {[%clk 0:00:34]} 22. axb4 {[%clk 0:00:41]}  fxe5 {[%clk 0:00:32]} 23. Rxc8 {[%clk 0:00:37]}  Rxc8 {[%clk 0:00:30]} 24. dxe5 {[%clk 0:00:37]}  Rc7 {[%clk 0:00:19]} 25. Ra1 {[%clk 0:00:33]}  Bxb4 {[%clk 0:00:11]} 26. Rxa6 {[%clk 0:00:31]}  Rc2 {[%clk 0:00:10]} 27. Rxb6 {[%clk 0:00:28]}  Rxb2 {[%clk 0:00:10]} 28. Nd4 {[%clk 0:00:26]}  Bc5 {[%clk 0:00:10]} 29. Rb8+ {[%clk 0:00:26]}  Kf7 {[%clk 0:00:11]} 30. Nxb5 {[%clk 0:00:21]}  Rxe2 {[%clk 0:00:09]} 31. Nd6+ {[%clk 0:00:15]}  Kg6 {[%clk 0:00:08]} 32. Re8 {[%clk 0:00:11]}  Rxf2+ {[%clk 0:00:08]} 33. Kh3 {[%clk 0:00:11]}  h6 {[%clk 0:00:08]} 34. Rxe6+ {[%clk 0:00:11]}  Kh7 {[%clk 0:00:08]} 35. Ne4 {[%clk 0:00:11]}  Rc2 {[%clk 0:00:07]} 36. Rc6 {[%clk 0:00:10]}  Re2 {[%clk 0:00:06]} 37. Nxc5 {[%clk 0:00:10]}  Rxe5 {[%clk 0:00:07]} 38. Nd3 {[%clk 0:00:10]}  Rf5 {[%clk 0:00:07]} 39. Nf4 {[%clk 0:00:10]}  Ra5 {[%clk 0:00:07]} 40. Rc7 {[%clk 0:00:10]}  Re5 {[%clk 0:00:06]} 41. Kg4 {[%clk 0:00:09]}  Kg8 {[%clk 0:00:06]} 42. Nh5 {[%clk 0:00:08]}  Rg5+ {[%clk 0:00:06]} 43. Kh4 {[%clk 0:00:08]}  Kh7 {[%clk 0:00:07]} 44. g4 {[%clk 0:00:08]}  Kg8 {[%clk 0:00:07]} 45. h3 {[%clk 0:00:08]}  Kh7 {[%clk 0:00:07]} 46. Nf6+ {[%clk 0:00:07]}  Kg6 {[%clk 0:00:07]} 47. Ne4 {[%clk 0:00:07]}  Re5 {[%clk 0:00:07]} 48. Ng3 {[%clk 0:00:06]}  Kf6 {[%clk 0:00:02]} 49. Nf5 {[%clk 0:00:06]}  g6 {[%clk 0:00:01]} 50. Nxh6 {[%clk 0:00:05]}  Re3 {[%clk 0:00:01]} 51. g5+ {[%clk 0:00:05]}  Ke6 {[%clk 0:00:02]} 52. Rc6+ {[%clk 0:00:05]}  Ke5 {[%clk 0:00:01]} 53. Rxg6 {[%clk 0:00:05]}  Rc3 {[%clk 0:00:01]} 54. Kg4 {[%clk 0:00:05]}  Rc4+ {[%clk 0:00:01]} 55. Kh5 {[%clk 0:00:05]}  Rc3 {[%clk 0:00:02]} 56. h4 {[%clk 0:00:05]}  Rc1 {[%clk 0:00:02]} 57. Rg8 {[%clk 0:00:06]}  Kf4 {[%clk 0:00:01]} 58. Rf8+ {[%clk 0:00:06]}  Kg3 {[%clk 0:00:01]} 59. g6 {[%clk 0:00:07]}  Kh3 {[%clk 0:00:02]} 60. g7 {[%clk 0:00:07]}  Rc5+ {[%clk 0:00:03]} 61. Kg6 {[%clk 0:00:06]}  Rc6+ {[%clk 0:00:04]} 62. Kh7 {[%clk 0:00:07]}  Rc7 {[%clk 0:00:00]} 63. Kh8 {[%clk 0:00:07]} 1-0


[Site "https://www.chess.com"]

[Event "Titled Tuesday Blitz November 14 Early 2023"]
[White "Sokolovsky, Yahli"]
[Black "Lund, Gunnar"]
[WhiteFideId "2820242"]
[BlackFideId "1520814"]
[WhiteElo "2762"]
[BlackElo "2556"]
[Result "1/2-1/2"]
[Round "4"]
[TimeControl "180+1"]
[Date "2023.11.14"]
[WhiteClock "0:00:21"]
[BlackClock "0:00:49"]
[Board "70"]

1. b3 {[%clk 0:03:00]}  e5 {[%clk 0:02:59]} 2. Bb2 {[%clk 0:03:01]}  Nc6 {[%clk 0:03:00]} 3. e3 {[%clk 0:03:02]}  d5 {[%clk 0:03:00]} 4. Nf3 {[%clk 0:03:02]}  Bd6 {[%clk 0:02:59]} 5. c4 {[%clk 0:03:03]}  Nf6 {[%clk 0:02:54]} 6. cxd5 {[%clk 0:03:03]}  Nxd5 {[%clk 0:02:54]} 7. Bc4 {[%clk 0:03:04]}  Be6 {[%clk 0:02:51]} 8. O-O {[%clk 0:02:53]}  Qd7 {[%clk 0:02:48]} 9. Nc3 {[%clk 0:02:52]}  Nxc3 {[%clk 0:02:48]} 10. Bxc3 {[%clk 0:02:52]}  Bxc4 {[%clk 0:02:47]} 11. bxc4 {[%clk 0:02:53]}  O-O {[%clk 0:02:47]} 12. d4 {[%clk 0:02:51]}  exd4 {[%clk 0:02:46]} 13. exd4 {[%clk 0:02:52]}  Rad8 {[%clk 0:02:37]} 14. d5 {[%clk 0:02:47]}  Ne7 {[%clk 0:02:37]} 15. Qd4 {[%clk 0:02:33]}  f6 {[%clk 0:02:25]} 16. c5 {[%clk 0:02:08]}  Be5 {[%clk 0:02:24]} 17. Nxe5 {[%clk 0:02:01]}  fxe5 {[%clk 0:02:25]} 18. Qxe5 {[%clk 0:01:59]}  Nxd5 {[%clk 0:02:26]} 19. Rad1 {[%clk 0:01:50]}  Qf7 {[%clk 0:02:24]} 20. Bb2 {[%clk 0:01:39]}  Rfe8 {[%clk 0:02:22]} 21. Qg5 {[%clk 0:01:38]}  h6 {[%clk 0:02:19]} 22. Qg4 {[%clk 0:01:29]}  c6 {[%clk 0:02:07]} 23. h3 {[%clk 0:00:59]}  Re6 {[%clk 0:02:01]} 24. Rd4 {[%clk 0:00:23]}  Rde8 {[%clk 0:01:58]} 25. Qg3 {[%clk 0:00:17]}  Re2 {[%clk 0:01:54]} 26. Ba1 {[%clk 0:00:16]}  Re1 {[%clk 0:01:52]} 27. Rd1 {[%clk 0:00:05]}  Rxf1+ {[%clk 0:01:44]} 28. Rxf1 {[%clk 0:00:06]}  Re6 {[%clk 0:01:42]} 29. Kh2 {[%clk 0:00:02]}  Rg6 {[%clk 0:01:40]} 30. Qf3 {[%clk 0:00:03]}  Qxf3 {[%clk 0:01:37]} 31. gxf3 {[%clk 0:00:04]}  Nf4 {[%clk 0:01:37]} 32. Be5 {[%clk 0:00:03]}  Nd3 {[%clk 0:01:22]} 33. Bd4 {[%clk 0:00:04]}  Re6 {[%clk 0:01:15]} 34. Rb1 {[%clk 0:00:04]}  Re7 {[%clk 0:01:08]} 35. h4 {[%clk 0:00:05]}  Nf4 {[%clk 0:01:08]} 36. Be3 {[%clk 0:00:05]}  Nd5 {[%clk 0:01:07]} 37. Bd4 {[%clk 0:00:05]}  Kf7 {[%clk 0:01:07]} 38. Kg3 {[%clk 0:00:06]}  g6 {[%clk 0:01:07]} 39. f4 {[%clk 0:00:06]}  b5 {[%clk 0:01:03]} 40. cxb6 {[%clk 0:00:06]}  axb6 {[%clk 0:01:04]} 41. a4 {[%clk 0:00:05]}  c5 {[%clk 0:00:59]} 42. Be5 {[%clk 0:00:05]}  Ra7 {[%clk 0:00:55]} 43. Rd1 {[%clk 0:00:05]}  Ke6 {[%clk 0:00:55]} 44. Re1 {[%clk 0:00:05]}  Rxa4 {[%clk 0:00:52]} 45. Bg7+ {[%clk 0:00:04]}  Kf7 {[%clk 0:00:49]} 46. Bxh6 {[%clk 0:00:04]}  Ra3+ {[%clk 0:00:49]} 47. Kg2 {[%clk 0:00:05]}  c4 {[%clk 0:00:48]} 48. Rd1 {[%clk 0:00:04]}  Rd3 {[%clk 0:00:48]} 49. Rxd3 {[%clk 0:00:03]}  cxd3 {[%clk 0:00:49]} 50. Kf3 {[%clk 0:00:04]}  b5 {[%clk 0:00:46]} 51. h5 {[%clk 0:00:04]}  gxh5 {[%clk 0:00:45]} 52. f5 {[%clk 0:00:05]}  b4 {[%clk 0:00:40]} 53. Ke4 {[%clk 0:00:05]}  b3 {[%clk 0:00:40]} 54. Kxd3 {[%clk 0:00:04]}  Kf6 {[%clk 0:00:38]} 55. Kc4 {[%clk 0:00:04]}  Kxf5 {[%clk 0:00:38]} 56. Kxb3 {[%clk 0:00:03]}  Nf6 {[%clk 0:00:34]} 57. Kc4 {[%clk 0:00:02]}  Ng4 {[%clk 0:00:34]} 58. Bd2 {[%clk 0:00:03]}  Nxf2 {[%clk 0:00:34]} 59. Kd4 {[%clk 0:00:03]}  Kg4 {[%clk 0:00:34]} 60. Ke3 {[%clk 0:00:03]}  Nh3 {[%clk 0:00:34]} 61. Bc3 {[%clk 0:00:03]}  Nf4 {[%clk 0:00:33]} 62. Be5 {[%clk 0:00:03]}  Ng6 {[%clk 0:00:32]} 63. Bd6 {[%clk 0:00:03]}  h4 {[%clk 0:00:29]} 64. Kf2 {[%clk 0:00:04]}  Nh8 {[%clk 0:00:28]} 65. Kg2 {[%clk 0:00:04]}  Nf7 {[%clk 0:00:29]} 66. Bc7 {[%clk 0:00:05]}  Ng5 {[%clk 0:00:29]} 67. Kh1 {[%clk 0:00:05]}  Kh3 {[%clk 0:00:26]} 68. Bb8 {[%clk 0:00:05]}  Ne4 {[%clk 0:00:26]} 69. Bc7 {[%clk 0:00:04]}  Ng3+ {[%clk 0:00:25]} 70. Kg1 {[%clk 0:00:05]}  Kg4 {[%clk 0:00:25]} 71. Bb8 {[%clk 0:00:05]}  Ne2+ {[%clk 0:00:25]} 72. Kh2 {[%clk 0:00:05]}  Nd4 {[%clk 0:00:26]} 73. Bc7 {[%clk 0:00:05]}  Nf5 {[%clk 0:00:26]} 74. Bb8 {[%clk 0:00:05]}  Ne3 {[%clk 0:00:27]} 75. Bc7 {[%clk 0:00:06]}  Nd5 {[%clk 0:00:28]} 76. Bb8 {[%clk 0:00:06]}  Kh5 {[%clk 0:00:29]} 77. Bd6 {[%clk 0:00:06]}  Kg4 {[%clk 0:00:29]} 78. Bb8 {[%clk 0:00:07]}  Nf6 {[%clk 0:00:30]} 79. Bd6 {[%clk 0:00:07]}  Ne4 {[%clk 0:00:31]} 80. Bb8 {[%clk 0:00:08]}  Kg5 {[%clk 0:00:31]} 81. Bc7 {[%clk 0:00:08]}  Kh5 {[%clk 0:00:31]} 82. Bb8 {[%clk 0:00:09]}  Kg4 {[%clk 0:00:31]} 83. Bc7 {[%clk 0:00:09]}  h3 {[%clk 0:00:32]} 84. Bb8 {[%clk 0:00:10]}  Ng5 {[%clk 0:00:33]} 85. Bc7 {[%clk 0:00:10]}  Nf3+ {[%clk 0:00:34]} 86. Kh1 {[%clk 0:00:11]}  Kf5 {[%clk 0:00:35]} 87. Bb8 {[%clk 0:00:11]}  Ke6 {[%clk 0:00:36]} 88. Bc7 {[%clk 0:00:12]}  Kd7 {[%clk 0:00:37]} 89. Bf4 {[%clk 0:00:12]}  Kc6 {[%clk 0:00:38]} 90. Bg3 {[%clk 0:00:12]}  Kd5 {[%clk 0:00:38]} 91. Bf4 {[%clk 0:00:13]}  Ke4 {[%clk 0:00:39]} 92. Bc7 {[%clk 0:00:14]}  Kd3 {[%clk 0:00:40]} 93. Bb8 {[%clk 0:00:14]}  Ke2 {[%clk 0:00:41]} 94. Bc7 {[%clk 0:00:15]}  Kd3 {[%clk 0:00:42]} 95. Bd6 {[%clk 0:00:15]}  Kc4 {[%clk 0:00:43]} 96. Bc7 {[%clk 0:00:16]}  Kb5 {[%clk 0:00:44]} 97. Bb8 {[%clk 0:00:17]}  Kc6 {[%clk 0:00:45]} 98. Bf4 {[%clk 0:00:17]}  Kd5 {[%clk 0:00:45]} 99. Bg3 {[%clk 0:00:18]}  Ke4 {[%clk 0:00:46]} 100. Bb8 {[%clk 0:00:19]}  Kf5 {[%clk 0:00:47]} 101. Bc7 {[%clk 0:00:19]}  Kg4 {[%clk 0:00:48]} 102. Bd6 {[%clk 0:00:20]}  Nd2 {[%clk 0:00:48]} 103. Bc7 {[%clk 0:00:20]}  Ne4 {[%clk 0:00:49]} 104. Bb8 {[%clk 0:00:20]}  Nf2+ {[%clk 0:00:50]} 105. Kg1 {[%clk 0:00:20]}  Kf3 {[%clk 0:00:50]} 106. Bc7 {[%clk 0:00:20]}  Ng4 {[%clk 0:00:51]} 107. Bb8 {[%clk 0:00:20]}  Ke4 {[%clk 0:00:49]} 108. Bc7 {[%clk 0:00:21]} 1/2-1/2


[Site "https://www.chess.com"]